bitfinex-derivatives/quotes_SOLF0:USTF0_20240923
["timestamp","ask_amount","ask_price","bid_price","bid_amount"]
[1727049600575,1.3475,144.77,144.66,4.2393]
[1727049600784,3.52131484,144.78,144.66,4.2393]
[1727049600977,1.3475,144.9,144.66,4.2393]
[1727049603583,1.08472545,144.89,144.66,4.2393]
[1727049604485,1.08472545,144.89,144.67,1.26947133]
[1727049604684,4.58765891,144.89,144.67,1.26947133]
[1727049604885,1.08472545,144.88,144.67,1.26947133]
[1727049605091,1.08472545,144.87,144.67,1.26947133]
[1727049605489,1.08472545,144.89,144.67,1.26947133]
[1727049605693,1.08472545,144.86,144.67,1.26947133]
[1727049605890,1.3475,144.9,144.67,1.26947133]
[1727049606093,1.08452495,144.89,144.67,1.26947133]
[1727049606691,1.08496075,144.88,144.68,7.70803196]
[1727049606992,4.83665146,144.9,144.67,6.43865335]
[1727049607290,1.08502136,144.89,144.68,1.26938714]
[1727049607493,1.08502136,144.89,144.67,6.43865335]
[1727049607690,1.08502136,144.89,144.67,6.91]
[1727049607996,1.08502136,144.89,144.69,6.91]
[1727049608196,1.08502136,144.89,144.69,6.44214442]
[1727049608397,1.08502136,144.89,144.66,7.68451368]
[1727049608398,21.80502136,144.89,144.67,6.44214442]
[1727049608601,1.08502136,144.88,144.68,6.44214442]
[1727049608793,1.08502136,144.88,144.67,6.44214442]
[1727049608989,1.08502136,144.88,144.68,6.44214442]
[1727049609195,1.08502136,144.88,144.67,6.44214442]
[1727049609398,1.08502136,144.88,144.68,6.44214442]
[1727049609594,1.08502136,144.88,144.67,6.44214442]
[1727049609787,1.08502136,144.88,144.68,6.44214442]
[1727049609993,1.08502136,144.88,144.69,6.44214442]
[1727049610495,1.08502136,144.88,144.66,14.59451368]
[1727049610496,1.08502136,144.88,144.67,6.44214442]
[1727049610703,1.08547418,144.87,144.68,6.44214442]
[1727049611006,21.81547418,144.89,144.69,6.44214442]
[1727049611193,1.36537418,144.86,144.66,7.68451368]
[1727049611494,1.4353,144.85,144.67,6.44873672]
[1727049611700,1.08547418,144.84,144.66,7.68451368]
[1727049611893,1.4353,144.85,144.67,6.44866325]
[1727049612104,1.4353,144.85,144.68,6.44866325]
[1727049612300,1.4353,144.85,144.69,6.44866325]
[1727049612604,1.4353,144.85,144.66,7.68451368]
[1727049612605,1.4353,144.85,144.67,6.44866325]
[1727049612795,1.08476043,144.84,144.67,6.44866325]
[1727049612995,1.4353,144.85,144.67,6.44866325]
[1727049613306,1.4353,144.85,144.68,6.44866325]
[1727049613490,1.4353,144.85,144.67,6.44866325]
[1727049613694,1.4353,144.85,144.68,6.44866325]
[1727049613695,1.08478388,144.84,144.68,6.44866325]
[1727049613998,1.08478388,144.84,144.67,6.44866325]
[1727049614198,1.08478388,144.84,144.66,7.68451368]
[1727049614401,1.08478388,144.84,144.67,6.44954273]
[1727049614602,1.4353,144.85,144.68,6.44954273]
[1727049614793,1.08477358,144.84,144.68,6.44954273]
[1727049614993,1.08477358,144.84,144.66,7.68451368]
[1727049615195,1.08477358,144.84,144.67,6.44975537]
[1727049615702,1.08477358,144.84,144.68,6.44975537]
[1727049616106,1.08477358,144.84,144.66,7.68451368]
[1727049616107,1.08477358,144.84,144.67,6.44975537]
[1727049616403,1.08477358,144.84,144.68,6.44975537]
[1727049616608,1.08477358,144.84,144.67,6.44975537]
[1727049618302,1.08477358,144.84,144.66,7.68451368]
[1727049618501,36.93614473,144.85,144.66,7.68451368]
[1727049618798,15.85583604,144.84,144.66,7.68451368]
[1727049618995,1.08499131,144.83,144.66,7.68451368]
[1727049619198,1.08503512,144.82,144.66,7.68451368]
[1727049619406,1.08503512,144.83,144.66,7.68451368]
[1727049619602,1.08503512,144.82,144.66,7.68451368]
[1727049619799,1.08503512,144.81,144.66,7.68451368]
[1727049620201,16.20884671,144.85,144.66,7.68451368]
[1727049620505,1.08511033,144.84,144.66,7.68451368]
[1727049621205,7.43,144.8,144.75,7.43]
[1727049621398,10.88452032,144.8,144.75,7.43]
[1727049622711,7.43,144.79,144.74,7.43]
[1727049622906,7.43,144.78,144.74,7.43]
[1727049623705,3.49357202,144.77,144.74,7.43]
[1727049624103,7.43,144.8,144.74,7.43]
[1727049624298,7.43,144.8,144.75,7.43]
[1727049624918,10.94223389,144.8,144.75,7.43]
[1727049625912,7.43,144.78,144.74,7.43]
[1727049627409,7.43,144.78,144.66,7.68451368]
[1727049627608,7.43,144.77,144.66,7.68451368]
[1727049627907,7.43,144.77,144.72,7.43]
[1727049629008,7.43,144.77,144.66,7.68451368]
[1727049629009,7.43,144.79,144.74,7.43]
[1727049629810,10.96952712,144.79,144.74,7.43]
[1727049631820,3.4539,144.76,144.74,7.43]
[1727049634510,7.43,144.76,144.71,3.4548]
[1727049634814,7.43,144.72,144.66,4.2393]
[1727049635013,7.43,144.71,144.66,4.2393]
[1727049635207,7.43,144.7,144.66,2.792]
[1727049635407,7.43,144.7,144.64,7.43]
[1727049635408,3.41719657,144.69,144.64,7.43]
[1727049635803,3.4561,144.67,144.64,7.43]
[1727049636613,3.4558,144.68,144.64,10.8866]
[1727049637712,7.43,144.68,144.57,6.45309969]
[1727049637920,10.84719657,144.69,144.64,7.43]
[1727049638311,3.41719657,144.69,144.64,7.43]
[1727049638513,3.4559,144.67,144.64,7.43]
[1727049638718,6.8493993,144.67,144.64,7.43]
[1727049639520,3.3934993,144.67,144.63,7.43]
[1727049639715,7.43,144.68,144.63,7.43]
[1727049640226,10.92965421,144.68,144.63,7.43]
[1727049641616,7.43,144.67,144.6,3.4576]
[1727049641812,7.43,144.62,144.57,7.43]
[1727049642010,14.7624707,144.76,144.56,4.2305]
[1727049642011,7.43,144.61,144.56,4.2305]
[1727049642217,7.43,144.61,144.56,10.2643]
[1727049642420,1.6472,144.67,144.48,7.8943471]
[1727049642421,7.43,144.59,144.48,7.8943471]
[1727049642720,3.458,144.59,144.56,7.43]
[1727049643223,3.4577,144.6,144.57,7.43]
[1727049643516,3.389134,144.61,144.57,7.43]
[1727049643719,7.43,144.64,144.58,7.43]
[1727049643917,3.4572,144.62,144.58,7.43]
[1727049644120,10.83469477,144.64,144.58,7.43]
[1727049645220,3.4575,144.61,144.58,7.43]
[1727049651622,7.43,144.59,144.45,3.38540226]
[1727049651815,3.40469477,144.64,144.49,7.43]
[1727049651816,7.43,144.55,144.49,7.43]
[1727049652016,10.96884751,144.55,144.49,7.43]
[1727049652230,3.4594,144.53,144.49,7.43]
[1727049653228,3.4595,144.52,144.49,7.43]
[1727049653426,7.43,144.53,144.48,11.6034]
[1727049653622,3.53884751,144.55,144.48,4.1734]
[1727049653830,3.4595,144.52,144.49,7.43]
[1727049654025,6.96139968,144.52,144.49,7.43]
[1727049654226,7.43,144.54,144.49,7.43]
[1727049654425,3.4593,144.53,144.48,7.6338]
[1727049654929,3.4595,144.53,144.48,7.6338]
[1727049655332,3.50951401,144.52,144.48,7.6338]
[1727049655534,11.64,144.57,144.48,4.1734]
[1727049656027,15.06748691,144.57,144.48,4.1734]
[1727049656223,11.64,144.54,144.48,4.1734]
[1727049656628,11.64,144.54,144.48,2.8307]
[1727049658428,3.4599,144.51,144.46,3.4608]
[1727049658623,3.4599,144.51,144.47,7.6656]
[1727049658828,3.4599,144.51,144.47,4.2049]
[1727049659030,3.46,144.5,144.47,2.7439]
[1727049659226,11.64,144.52,144.39,1.461]
[1727049659435,11.64,144.48,144.39,4.2049]
[1727049659637,3.4616,144.44,144.39,19.3075]
[1727049660131,3.4617,144.43,144.39,19.3075]
[1727049660335,15.02862308,144.48,144.39,15.8449]
[1727049660631,15.02862308,144.48,144.27,6.931]
[1727049660935,5.03761661,144.47,144.39,11.64]
[1727049661133,15.02862308,144.48,144.4,2.9222]
[1727049661335,3.38862308,144.48,144.41,11.64]
[1727049661630,11.64,144.51,144.41,11.64]
[1727049661835,5.03300936,144.5,144.42,4.8636]
[1727049662132,229.0,144.56,144.44,11.64]
[1727049662327,11.64,144.54,144.45,11.64]
[1727049662633,5.02949983,144.53,144.46,3.4609]
[1727049662827,11.64,144.54,144.46,4.8477]
[1727049663030,13.1029,144.56,144.48,3.4605]
[1727049663231,5.02818676,144.55,144.48,3.4605]
[1727049663529,13.1029,144.56,144.48,3.4605]
[1727049663735,5.02533164,144.55,144.47,11.64]
[1727049663931,13.1029,144.56,144.48,1.3484]
[1727049666542,13.1029,144.56,144.49,3.4602]
[1727049667631,13.1029,144.56,144.48,1.3484]
[1727049668224,3.459,144.55,144.49,3.4601]
[1727049668631,13.1029,144.56,144.49,3.4601]
[1727049669337,13.1029,144.56,144.48,1.3484]
[1727049669543,11.64,144.54,144.48,1.3484]
[1727049669738,3.4596,144.52,144.48,1.3484]
[1727049670235,11.64,144.54,144.48,1.3484]
[1727049672229,11.64,144.52,144.46,1.3868]
[1727049672429,11.64,144.52,144.42,11.64]
[1727049672629,11.64,144.5,144.42,11.64]
[1727049672836,3.4605,144.48,144.42,11.64]
[1727049673033,6.88142916,144.48,144.43,3.4615]
[1727049674133,3.4604,144.49,144.44,3.4613]
[1727049674338,11.64,144.53,144.42,11.64]
[1727049675334,11.64,144.53,144.44,11.64]
[1727049676347,11.64,144.53,144.42,11.64]
[1727049676744,11.64,144.51,144.41,12.9734]
[1727049677144,11.64,144.51,144.43,3.4615]
[1727049677445,11.64,144.51,144.41,12.9734]
[1727049677748,3.4606,144.48,144.42,3.4617]
[1727049678043,6.97503486,144.48,144.41,12.9734]
[1727049678238,3.4605,144.48,144.43,3.4616]
[1727049678439,3.37939746,144.48,144.43,3.4616]
[1727049678631,11.64,144.49,144.43,3.4616]
[1727049679036,15.05540743,144.49,144.41,4.7953]
[1727049679445,15.05540743,144.49,144.41,1.3334]
[1727049679954,11.64,144.47,144.4,1.3483]
[1727049680148,11.64,144.44,144.36,1.4046]
[1727049680447,3.4621,144.42,144.37,3.4629]
[1727049680657,11.64,144.44,144.36,1.4046]
[1727049681147,3.4622,144.41,144.36,1.4046]
[1727049681347,3.39810847,144.4,144.36,1.4046]
[1727049681643,11.64,144.44,144.36,1.4046]
[1727049681850,11.64,144.46,144.36,13.0446]
[1727049682144,3.4616,144.44,144.39,3.4624]
[1727049682951,3.4616,144.44,144.4,3.4624]
[1727049683948,1.438,144.48,144.27,6.9309]
[1727049684141,11.64,144.44,144.35,11.64]
[1727049684450,11.64,144.44,144.36,4.866]
[1727049684953,11.64,144.46,144.36,1.4028]
[1727049685246,11.64,144.46,144.37,11.64]
[1727049685447,3.41540743,144.49,144.39,11.64]
[1727049685650,11.64,144.5,144.4,1.3833]
[1727049686349,11.64,144.48,144.4,1.3833]
[1727049686539,15.18786465,144.48,144.4,1.3833]
[1727049687846,3.461,144.46,144.4,1.3833]
[1727049688453,3.461,144.46,144.4,13.0233]
[1727049688649,15.18786465,144.48,144.41,3.462]
[1727049688850,1.4249,144.51,144.42,11.64]
[1727049689048,1.4249,144.51,144.44,11.64]
[1727049689252,3.4602,144.5,144.45,3.4611]
[1727049689553,94.72,144.56,144.46,11.64]
[1727049689752,96.1713,144.56,144.47,3.4606]
[1727049689944,1.08692565,144.55,144.47,3.4606]
[1727049690151,1.08692565,144.55,144.46,11.64]
[1727049690353,3.4597,144.52,144.46,3.4607]
[1727049690853,3.4597,144.52,144.47,3.4605]
[1727049691251,3.4594,144.53,144.44,18.63]
[1727049691557,84.5313,144.56,144.44,18.63]
[1727049691747,3.4594,144.53,144.44,18.63]
[1727049692149,3.4594,144.53,144.47,3.4605]
[1727049693155,3.4596,144.52,144.47,3.4605]
[1727049693347,3.4596,144.52,144.46,3.4609]
[1727049693548,3.46,144.5,144.44,18.63]
[1727049693749,3.46,144.5,144.43,1.3969]
[1727049694259,3.41469325,144.49,144.43,1.3969]
[1727049694458,18.63,144.52,144.43,1.3969]
[1727049695055,18.63,144.52,144.43,4.8584]
[1727049695256,18.63,144.52,144.43,1.3969]
[1727049696059,3.4604,144.49,144.44,3.4614]
[1727049696265,3.50518961,144.48,144.44,3.4614]
[1727049696763,6.96568961,144.48,144.44,3.4614]
[1727049696955,18.63,144.54,144.43,20.0269]
[1727049697861,1.08681983,144.53,144.43,20.0269]
[1727049698062,3.4599,144.51,144.46,3.4609]
[1727049698359,18.63,144.54,144.46,3.4609]
[1727049698561,1.08681708,144.53,144.4,1.3833]
[1727049698760,1.08681708,144.53,144.41,19.9925]
[1727049698960,1.08680563,144.52,144.41,19.9925]
[1727049699357,3.4598,144.51,144.44,18.63]
[1727049699565,1.08681708,144.53,144.46,18.63]
[1727049699765,1.08681708,144.53,144.5,3.4598]
[1727049699967,229.0,144.65,144.51,18.63]
[1727049700171,1.6796,144.64,144.54,18.63]
[1727049700855,3.4573,144.62,144.57,3.4583]
[1727049701271,5.17834968,144.64,144.54,18.63]
[1727049701456,3.458,144.59,144.54,3.459]
[1727049702866,18.63,144.62,144.52,1.4095]
[1727049703069,1.0786043,144.61,144.52,1.4095]
[1727049703672,3.458,144.59,144.53,3.4592]
[1727049703872,3.458,144.59,144.52,1.4095]
[1727049704269,3.458,144.59,144.54,3.459]
[1727049704465,18.63,144.62,144.52,1.4095]
[1727049704677,1.07760957,144.61,144.52,1.4095]
[1727049705479,3.4586,144.56,144.52,1.4095]
[1727049705775,5.17834968,144.64,144.54,18.63]
[1727049706077,3.4577,144.6,144.55,3.4586]
[1727049706276,5.17834968,144.64,144.54,18.63]
[1727049706469,1.07769104,144.63,144.54,18.63]
[1727049706674,3.4576,144.6,144.55,3.4586]
[1727049706874,5.17834968,144.64,144.54,18.63]
[1727049707075,1.07777106,144.63,144.54,18.63]
[1727049708873,1.07777106,144.63,144.52,1.4095]
[1727049709274,29.59159759,144.63,144.52,1.4095]
[1727049709574,1.07777106,144.62,144.52,4.869]
[1727049709779,1.07781031,144.61,144.52,4.869]
[1727049709969,1.07781031,144.6,144.52,4.869]
[1727049710278,1.07781031,144.59,144.52,1.4095]
[1727049710467,1.07781031,144.58,144.52,1.4095]
[1727049710672,3.4587,144.56,144.52,1.4095]
[1727049711380,6.85617321,144.56,144.52,1.4095]
[1727049711879,6.85617321,144.56,144.52,4.869]
[1727049712076,6.85617321,144.56,144.54,18.63]
[1727049712276,7.22615119,144.69,144.54,18.63]
[1727049712277,28.55153607,144.65,144.54,18.63]
[1727049712481,17.15079962,144.64,144.54,18.63]
[1727049712685,1.07863849,144.63,144.54,18.63]
[1727049712881,4.53553849,144.63,144.54,18.63]
[1727049713070,3.4569,144.63,144.54,18.63]
[1727049713271,3.4569,144.63,144.56,18.63]
[1727049713475,4.7836,144.64,144.54,18.63]
[1727049713773,1.07864228,144.63,144.56,18.63]
[1727049713979,1.07864228,144.63,144.6,3.4576]
[1727049714379,4.7836,144.64,144.56,18.63]
[1727049714579,1.07865961,144.63,144.58,3.4579]
[1727049714882,1.07865961,144.63,144.56,18.63]
[1727049715087,1.07865961,144.63,144.54,18.63]
[1727049715277,1.07865961,144.63,144.57,3.4582]
[1727049715981,3.4573,144.62,144.57,3.4582]
[1727049716182,1.3268,144.64,144.54,18.63]
[1727049716383,1.07884539,144.63,144.54,18.63]
[1727049716787,3.4573,144.62,144.57,3.4581]
[1727049717284,3.457,144.63,144.58,3.458]
[1727049718474,1.3268,144.64,144.56,18.63]
[1727049718679,1.07878125,144.63,144.55,1.4547]
[1727049720279,1.07878125,144.63,144.55,3.4586]
[1727049720480,1.07878125,144.63,144.54,18.63]
[1727049720682,3.458,144.59,144.54,3.4589]
[1727049720878,1.3268,144.64,144.52,20.0395]
[1727049721189,1.07836326,144.63,144.52,20.0395]
[1727049721489,15.82731849,144.63,144.52,20.0395]
[1727049721691,1.07836326,144.62,144.52,20.0395]
[1727049721990,18.63,144.61,144.52,1.4095]
[1727049722185,1.07836326,144.6,144.52,1.4095]
[1727049722393,18.63,144.59,144.47,18.63]
[1727049722684,2.45326326,144.58,144.47,18.63]
[1727049722886,3.4592,144.54,144.48,3.4604]
[1727049723087,3.53082982,144.53,144.48,3.4604]
[1727049723478,2.702,144.58,144.49,18.63]
[1727049724194,1.07754966,144.57,144.48,2.6822]
[1727049724502,3.4597,144.52,144.46,4.8413]
[1727049724792,18.63,144.57,144.46,1.3804]
[1727049725087,3.4595,144.53,144.47,3.4605]
[1727049725585,3.4592,144.54,144.46,1.3804]
[1727049725778,17.43822999,144.58,144.47,18.63]
[1727049725981,1.07744327,144.57,144.47,18.63]
[1727049726179,6.93699634,144.56,144.5,18.63]
[1727049726489,2.702,144.58,144.5,18.63]
[1727049726789,1.07724532,144.57,144.46,20.0104]
[1727049726987,4.5483712,144.57,144.48,18.63]
[1727049727189,2.702,144.58,144.48,18.63]
[1727049727579,3.4584,144.57,144.48,18.63]
[1727049727785,2.702,144.58,144.48,18.63]
[1727049727786,3.49432211,144.56,144.48,18.63]
[1727049727995,2.702,144.58,144.48,18.63]
[1727049728601,2.702,144.58,144.49,1.3466]
[1727049728790,3.38987744,144.57,144.5,18.63]
[1727049729187,1.3271,144.58,144.5,18.63]
[1727049729490,1.3271,144.58,144.49,1.3466]
[1727049729690,3.459,144.55,144.49,4.8067]
[1727049729992,3.47019317,144.55,144.49,1.3466]
[1727049730297,1.3271,144.58,144.46,1.3804]
[1727049730599,21.03398577,144.57,144.46,1.3804]
[1727049730895,3.4597,144.52,144.46,4.8412]
[1727049733191,3.4598,144.51,144.46,4.8412]
[1727049734497,3.46,144.5,144.46,1.3804]
[1727049735199,14.73141474,144.55,144.46,1.3804]
[1727049735397,1.07687738,144.54,144.46,1.3804]
[1727049735788,3.4599,144.51,144.46,1.3804]
[1727049736004,14.73141474,144.55,144.46,20.0104]
[1727049736197,1.07690034,144.54,144.46,20.0104]
[1727049736389,3.4593,144.53,144.47,3.4607]
[1727049736595,28.53381435,144.56,144.47,3.4607]
[1727049736799,3.4595,144.53,144.48,3.4604]
[1727049737492,3.43488194,144.57,144.48,18.63]
[1727049737792,1.07713243,144.56,144.49,2.7754]
[1727049737987,3.38585347,144.56,144.49,2.7754]
[1727049738204,3.4593,144.53,144.49,2.7754]
[1727049738499,6.86222203,144.53,144.49,2.7754]
[1727049738901,3.4595,144.52,144.49,1.432]
[1727049739096,1.3271,144.58,144.49,1.432]
[1727049739301,1.07709618,144.57,144.49,1.432]
[1727049739491,15.81065777,144.57,144.49,1.432]
[1727049739695,1.07709618,144.56,144.49,1.432]
[1727049740003,3.4591,144.54,144.49,1.432]
[1727049740199,16.05983143,144.58,144.49,1.432]
[1727049740395,3.4593,144.53,144.49,1.432]
[1727049740596,6.98339638,144.53,144.49,1.432]
[1727049741390,3.4596,144.52,144.47,4.804]
[1727049741595,29.8795081,144.58,144.46,1.3804]
[1727049741596,47.18040997,144.57,144.46,1.3804]
[1727049741800,18.63,144.54,144.46,1.3804]
[1727049741996,17.15023667,144.53,144.46,1.3804]
[1727049742307,3.4603,144.49,144.46,1.3804]
[1727049742501,3.4603,144.49,144.44,3.4614]
[1727049742802,16.07269777,144.53,144.44,18.63]
[1727049743000,3.4598,144.51,144.46,3.4608]
[1727049743195,14.73852188,144.55,144.47,18.63]
[1727049743501,1.07754886,144.54,144.47,18.63]
[1727049743704,18.18714395,144.57,144.47,18.63]
[1727049743902,1.07765814,144.56,144.48,1.3277]
[1727049744104,3.4592,144.54,144.49,3.4601]
[1727049744404,3.4592,144.54,144.49,4.8926]
[1727049744709,3.44862207,144.57,144.5,3.4599]
[1727049744901,1.0780975,144.56,144.5,3.4599]
[1727049745106,6.95682681,144.56,144.51,3.4597]
[1727049745307,3.4587,144.56,144.51,3.4597]
[1727049745794,6.86682058,144.56,144.51,3.4597]
[1727049746199,3.4587,144.56,144.51,3.4597]
[1727049746606,6.99975286,144.56,144.51,3.4597]
[1727049746801,3.4587,144.56,144.51,3.4597]
[1727049747598,6.84184196,144.57,144.52,3.4594]
[1727049747803,3.4583,144.57,144.52,3.4594]
[1727049748003,1.3271,144.58,144.49,21.4196]
[1727049748201,1.07828778,144.57,144.49,21.4196]
[1727049748404,6.96648348,144.56,144.51,3.4597]
[1727049748597,3.4587,144.56,144.51,3.4597]
[1727049750300,3.44167725,144.57,144.49,21.4196]
[1727049750499,1.07821629,144.56,144.49,21.4196]
[1727049750700,3.43890841,144.55,144.49,21.4196]
[1727049750909,3.459,144.55,144.5,3.4598]
[1727049751108,14.76174893,144.61,144.54,18.63]
[1727049751309,3.47248182,144.65,144.55,1.4459]
[1727049751310,1.07838416,144.6,144.55,1.4459]
[1727049751610,1.07838416,144.59,144.55,1.4459]
[1727049751802,13.83360349,144.61,144.55,1.4459]
[1727049751997,1.07837101,144.6,144.55,1.4459]
[1727049752396,1.07839751,144.59,144.49,19.9871]
[1727049752597,1.07839751,144.58,144.5,4.8415]
[1727049752808,28.59535242,144.62,144.5,4.8415]
[1727049753014,3.4591,144.54,144.5,1.3817]
[1727049753317,3.51007129,144.55,144.5,1.3817]
[1727049753612,1.3385,144.64,144.48,1.3277]
[1727049753613,18.63,144.58,144.48,1.3277]
[1727049753804,47.22535242,144.6,144.44,18.63]
[1727049753805,18.63,144.56,144.44,18.63]
[1727049753999,3.4603,144.49,144.44,22.0913]
[1727049756013,18.63,144.54,144.42,18.63]
[1727049756200,28.94354104,144.53,144.42,18.63]
[1727049756405,3.4611,144.46,144.42,18.63]
[1727049756606,28.94354104,144.52,144.4,22.7598]
[1727049756804,3.73804583,144.51,144.4,22.7598]
[1727049757004,3.4613,144.45,144.4,22.7598]
[1727049757203,28.941728,144.5,144.4,22.7598]
[1727049757408,18.63,144.49,144.4,2.7576]
[1727049758513,15.16917634,144.48,144.4,1.3817]
[1727049758704,3.4619,144.42,144.4,1.3817]
[1727049759110,3.4619,144.42,144.36,4.8071]
[1727049759315,3.43737273,144.43,144.36,2.7471]
[1727049759613,18.63,144.45,144.33,18.63]
[1727049759817,19.05049743,144.44,144.33,18.63]
[1727049760116,17.97347634,144.44,144.34,3.4636]
[1727049760412,17.97347634,144.44,144.33,18.63]
[1727049760413,1.07691995,144.43,144.33,18.63]
[1727049760917,17.97347634,144.44,144.34,1.3831]
[1727049761107,1.07741732,144.43,144.35,1.4032]
[1727049762113,3.4627,144.39,144.35,1.4032]
[1727049762512,17.97347634,144.44,144.35,1.4032]
[1727049762721,3.4629,144.38,144.35,1.4032]
[1727049763817,3.4632,144.37,144.35,1.4032]
[1727049764119,3.48800713,144.36,144.31,3.4645]
[1727049764415,3.4633,144.36,144.31,3.4645]
[1727049765215,6.85014811,144.37,144.31,3.4645]
[1727049765516,3.4632,144.37,144.31,3.4645]
[1727049765820,2.8043,144.44,144.33,18.63]
[1727049766011,2.8043,144.44,144.37,18.63]
[1727049766012,1.07792632,144.43,144.37,18.63]
[1727049766211,2.8043,144.44,144.37,18.63]
[1727049766911,1.3896,144.44,144.37,18.63]
[1727049767117,1.3896,144.44,144.38,1.4382]
[1727049767420,5.13651428,144.43,144.38,1.4382]
[1727049767613,5.13651428,144.42,144.38,1.4382]
[1727049767809,8.59881428,144.41,144.38,1.4382]
[1727049768014,5.13651428,144.4,144.38,1.4382]
[1727049768215,5.13651428,144.39,144.38,1.4382]
[1727049768519,5.13443957,144.39,144.38,1.4382]
[1727049771621,1.3896,144.44,144.38,1.4382]
[1727049771817,3.4619,144.42,144.38,1.4382]
[1727049772315,5.1302578,144.41,144.38,1.4382]
[1727049772516,5.1302578,144.4,144.38,1.4382]
[1727049772717,5.1302578,144.39,144.38,1.4382]
[1727049773119,3.4619,144.42,144.38,1.4382]
[1727049773325,5.12922938,144.39,144.38,1.4382]
[1727049774215,5.12922938,144.39,144.38,4.9011]
[1727049775114,3.4618,144.43,144.39,3.4626]
[1727049775321,5.12725793,144.42,144.39,3.4626]
[1727049775515,5.12725793,144.41,144.39,3.4626]
[1727049775820,5.12725793,144.4,144.38,2.7573]
[1727049776126,1.3576,144.49,144.39,18.63]
[1727049776323,1.3576,144.49,144.41,18.63]
[1727049776620,1.07844782,144.48,144.41,18.63]
[1727049776812,1.4632,144.5,144.41,18.63]
[1727049777019,1.07846574,144.49,144.41,18.63]
[1727049777221,3.4608,144.47,144.42,3.4618]
[1727049777618,1.4632,144.5,144.41,18.63]
[1727049777820,3.4608,144.47,144.42,3.4619]
[1727049778819,3.461,144.46,144.41,15.0921]
[1727049779418,3.54465461,144.45,144.41,15.0921]
[1727049780321,3.54465461,144.45,144.41,11.63]
[1727049780529,3.4612,144.45,144.4,3.4623]
[1727049780727,3.41266541,144.44,144.4,3.4623]
[1727049780923,11.63,144.47,144.39,11.63]
[1727049781123,11.63,144.47,144.38,4.1497]
[1727049781328,1.424,144.46,144.38,4.1497]
[1727049781526,3.4618,144.43,144.38,7.6125]
[1727049781725,6.92400484,144.43,144.38,7.6125]
[1727049782027,1.424,144.46,144.39,11.63]
[1727049782237,16.57585367,144.5,144.43,11.63]
[1727049782525,1.07847501,144.49,144.43,11.63]
[1727049782729,3.4607,144.47,144.43,11.63]
[1727049783324,3.461,144.46,144.43,11.63]
[1727049784533,3.4608,144.47,144.43,11.63]
[1727049784726,1.4632,144.5,144.43,11.63]
[1727049785035,4.9232,144.5,144.43,11.63]
[1727049785228,4.9232,144.5,144.45,11.63]
[1727049785229,1.4632,144.5,144.45,11.63]
[1727049785424,1.4632,144.5,144.44,1.4146]
[1727049785735,1.07886031,144.49,144.44,1.4146]
[1727049785929,1.4632,144.5,144.44,1.4146]
[1727049786133,3.461,144.46,144.44,1.4146]
[1727049786736,3.4608,144.47,144.44,1.4146]
[1727049788338,5.04892799,144.46,144.44,1.4146]
[1727049788531,5.04892799,144.45,144.44,1.4146]
[1727049789027,8.47069151,144.45,144.41,15.0921]
[1727049789340,8.51052799,144.44,144.39,13.0154]
[1727049789640,5.04892799,144.43,144.39,16.4778]
[1727049789829,5.04892799,144.42,144.39,1.3854]
[1727049790032,5.04892799,144.41,144.39,1.3854]
[1727049790235,5.04892799,144.4,144.39,1.3854]
[1727049790432,5.04892799,144.4,144.35,11.63]
[1727049790732,5.04892799,144.39,144.34,11.63]
[1727049790940,3.40825656,144.42,144.34,11.63]